Cogmind - Beta 15 @@@ ROGUE MODE // 2025.05.30 @ 11:35:35 Player: Nebulae Result: Destroyed by Y-45 Defender with Beam Rifle Performance ------------- Evolutions (1) 500 Regions Visited (3) 600 Robots Destroyed (123) 615 Value Destroyed (3329) 3329 Prototype IDs (7) 140 Alien Tech Used (0) 0 Bonus (275) 275 TOTAL SCORE: 5459 Bonus ------- High Alert Combat Kills 205 Follower Combat Kills 259 Friendly Fire -189 Cogmind --------- Core Integrity 0/400 Matter 270/300 Energy 264/280 System Corruption 3% Temperature Warm (146) Movement Walking (120) Location -9/Storage Parts ------- > --- POWER (1) -------- Heavy Ion Engine > --- PROPULSION (4) --- Improved Aluminum Leg (fused) Improved Aluminum Leg Improved Aluminum Leg Carbon-fiber Leg > --- UTILITY (2) ------ Large Storage Unit Medium Armor Plating > --- WEAPON (2) ------- Improved EM Shotgun (fused) Improved EM Shotgun > --- INVENTORY (15) --- Cooled Ion Engine Cooled Ion Engine Medium Storage Unit Compact Battery (200) Structural Scanner Seismic Detector Propulsion Shielding Shield Generator Heavy Particle Cannon Autogun Autogun Improved Assault Rifle Rocket Launcher Mini Grenade Launcher Datajack Peak State ------------ > --- POWER ------------ Cooled Ion Engine > --- PROPULSION ------- Improved Aluminum Leg Improved Aluminum Leg Improved Aluminum Leg Carbon-fiber Leg > --- UTILITY ---------- Large Storage Unit Medium Armor Plating > --- WEAPON ----------- Improved EM Shotgun Improved EM Shotgun > --- INVENTORY -------- Cooled Ion Engine Cooled Ion Engine Improved Aluminum Leg Medium Storage Unit Compact Battery Seismic Detector Propulsion Shielding Shield Generator Heavy Particle Cannon Autogun Autogun Improved Assault Rifle Rocket Launcher Mini Grenade Launcher Datajack [Rating: 24] Favorites ----------- Power Heavy Ion Engine Engine Heavy Ion Engine Propulsion Improved Aluminum Leg Treads Light Treads Leg Improved Aluminum Leg Utility Large Storage Unit Device Seismic Detector Storage Large Storage Unit Processor Visual Processing Unit Protection Hardened Light Armor Plating Weapon Improved EM Shotgun Energy Gun Improved EM Shotgun Energy Cannon Heavy Particle Cannon Ballistic Gun Autogun Launcher Mini Grenade Launcher Special Weapon Mining Laser Special Melee Weapon Datajack Build | -11 -10 -9 -9 ------- Run | Yrd Mat Mat Sto Slots Evolved 2 | . . 2 . Power . | . . . . Propulsion 2 | . . 2 . Utility . | . . . . Weapon . | . . . . Parts Attached 47 | 7 10 25 5 Power 10 | 1 2 6 1 Engine 10 | 1 2 6 1 Core . | . . . . Reactor . | . . . . Propulsion 13 | 2 4 4 3 Treads 2 | 2 . . . Leg 11 | . 4 4 3 Wheel . | . . . . Hover . | . . . . Flight . | . . . . Utility 11 | 2 3 6 . Device 3 | 1 . 2 . Storage 3 | 1 2 . . Processor 1 | . 1 . . Hackware . | . . . . Protection 4 | . . 4 . Artifact . | . . . . Weapon 13 | 2 1 9 1 Energy Gun 5 | 2 . 3 . Energy Cannon 1 | . . 1 . Ballistic Gun 4 | . 1 3 . Ballistic Cannon . | . . . . Launcher 1 | . . 1 . Special Weapon 1 | . . 1 . Impact Weapon . | . . . . Slashing Weapon . | . . . . Piercing Weapon . | . . . . Special Melee Weapon 1 | . . . 1 Unidentified Prototypes 4 | . . 4 . Parts Lost 12 | . 4 7 1 Power 3 | . 1 2 . Propulsion 4 | . 2 1 1 Utility 2 | . . 2 . Weapon 3 | . 1 2 . Highest Loss Streak 2 | . 2 2 1 To Critical Strikes . | . . . . Average Backups 12 | 3 8 14 14 Power 2 | 1 . 2 2 Propulsion 1 | 1 2 1 . Utility 4 | . 3 5 5 Weapon 3 | . 2 3 5 Tool/Special . | . . . . Unused Backups 23 | . 7 11 5 Power 5 | . 2 1 2 Propulsion 4 | . 3 1 . Utility 10 | . 1 7 2 Weapon 4 | . 1 2 1 Tool/Special . | . . . . Average Slot Usage (%) 98 | . 96 99 99 Engine 11 | . 14 10 11 Leg 39 | . 21 43 43 Storage 11 | . 14 11 11 Processor 2 | . 12 . . Protection 7 | . . 9 11 Energy Gun 14 | . 18 12 15 Ballistic Gun 8 | . 9 8 5 Peak Build Rating 24 | 9 14 23 24 Average Rating 18 | 7 11 20 23 On Entrance 11 | . 9 14 23 Naked Turns . | . . . . Heaviest Build 44 | 15 32 44 44 Greatest Support 54 | 40 40 52 54 Greatest Overweight (x) 4 | 4 2 1 1 Average Overweight (x) . | . . . . Largest Inventory Capacity 15 | 8 15 15 15 Average Capacity 14 | 7 11 15 15 Most Carried 15 | 6 15 15 15 Average Carried 12 | 3 8 14 14 Final Capacity 15 | 8 15 15 15 Final Carried 15 | 6 15 15 15 Class Distribution -------------------- 93% | Mutant 6% | Commander-Mutant Dominant Class ---------------- Mutant | -10/Materials Mutant | -9/Materials Mutant | -9/Storage Resources | -11 -10 -9 -9 ----------- Run | Yrd Mat Mat Sto Matter Collected 1869 | 270 265 1039 295 Remotely . | . . . . Salvage Created 4639 | 195 783 2248 1413 Parts 286 | 19 59 127 81 Haulers Intercepted 9 | . 2 6 1 Recyclers Shooed 1 | . . 1 . Parts Field Recycled . | . . . . Retrieved Matter . | . . . . Parts Self-Destructed . | . . . . Prevented . | . . . . Kills | -11 -10 -9 -9 ------- Run | Yrd Mat Mat Sto Combat Hostiles Destroyed 83 | . 18 40 25 Guns 62 | . 14 31 17 Cannons 1 | . . 1 . AOE 20 | . 4 8 8 Classes Destroyed 14 | 1 6 5 2 Worker 1 | . 1 . . Builder 2 | . . . 2 Tunneler 9 | 8 1 . . Hauler 9 | . 2 6 1 Recycler 2 | . . 1 1 Mechanic 3 | . . 1 2 Operator 4 | . 2 2 . Watcher 9 | . 2 5 2 Swarmer 11 | . 8 3 . Grunt 51 | . 10 23 18 Brawler 2 | . . 2 . Duelist 3 | . . 2 1 Protector 1 | . . . 1 Sentry 15 | . . 10 5 Thug 1 | . . . 1 Best Kill Streak 19 | 3 5 5 19 Combat Bots Only 16 | . 4 4 16 Max Kills in Single Turn 3 | 2 3 3 3 Gunslinging 1 | . . 1 . Exploded 3 | . 3 2 2 Melee . | . . . . Uniques/NPCs Destroyed . | . . . . Combat | -11 -10 -9 -9 -------- Run | Yrd Mat Mat Sto Hostile Shots Fired 298 | . 79 140 79 Missed 91 | . 17 41 33 Hits 207 | . 62 99 46 Melee 9 | . . 9 . Projectile 198 | . 62 90 46 Critical Strikes 5 | . . 2 3 Damage Taken 2894 | 17 701 1526 650 Core 579 | 17 149 296 117 Absorbed by Shields . | . . . . Redirected to Shielding 3 | . . 3 . Regen/Repaired (Parts) 219 | . . 82 137 Core Remaining (%) 63 | 93 33 . . Volleys Fired 280 | 23 63 146 48 Largest 2 | 2 2 2 2 Hottest 123 | 80 80 123 120 Shots Fired 553 | 46 125 288 94 Gun 533 | 46 125 276 86 Cannon 5 | . . 2 3 Launcher 7 | . . 2 5 Special 8 | . . 8 . Kinetic 244 | . 46 183 15 Thermal 13 | . . 10 3 Explosive 7 | . . 2 5 Electromagnetic 289 | 46 79 93 71 Robot Hit Streak 19 | 6 12 19 8 Robot Miss Streak 5 | 2 3 5 3 Penetration Max . | . . . . Secondary Targets 4 | . 2 1 1 Max Gunslinging Chain 1 | . 1 1 1 Shots Hit Robots 361 | 30 76 185 70 Core Hits 195 | 8 31 91 65 Critical Kills . | . . . . Critical Parts Destroyed 1 | . . 1 . Critical Strikes 3 | . 2 1 . Destroy 1 | . . 1 . Corrupt 2 | . 2 . . Melee Attacks 1 | . . . 1 Impact . | . . . . Slashing . | . . . . Piercing . | . . . . Sneak Attacks 1 | . . . 1 Combat Hostiles . | . . . . Follow-up Attacks . | . . . . Damage Inflicted 7400 | 515 1357 3306 2222 Guns 5240 | 397 1124 2593 1126 Cannons 25 | . . . 25 Explosions 2063 | 118 233 641 1071 Melee . | . . . . Ramming . | . . . . Kinetic 2011 | . 403 1518 90 Thermal 1276 | 118 233 275 650 Explosive 884 | . . 438 446 Electromagnetic 3229 | 397 721 1075 1036 Impact . | . . . . Slashing . | . . . . Piercing . | . . . . Highest Corruption 3 | . 1 3 3 Average Corruption 2 | . 1 2 3 Corruption Purged . | . . . . Corruption Blocked . | . . . . Effects 23 | . . 4 19 Message Errors 5 | . . 1 4 Matter Fused 5 | . . . 5 Heat Flow Errors 3 | . . . 3 Energy Discharges 4 | . . 1 3 Parts Fused 2 | . . 1 1 Data Loss (minor) 2 | . . . 2 Data Loss (major) 1 | . . 1 . Misfires 1 | . . . 1 Overload Shots . | . . . . Overflow Damage 48 | 13 28 4 3 Projectiles . | . . . . Explosions 48 | 13 28 4 3 Melee . | . . . . Knockbacks . | . . . . Impact . | . . . . Kinetic . | . . . . Secondary . | . . . . Self-Inflicted Damage 303 | 17 117 125 44 Shots 11 | 1 3 5 2 Rammed . | . . . . Targets Rammed . | . . . . Kicked . | . . . . Crushed . | . . . . Highest Temperature 321 | 162 168 321 269 Average Temperature 56 | 49 42 62 58 Received Heat Transfer 1017 | . 156 546 315 Effects 2 | . . 2 . Energy Bleed 1 | . . 1 . Interference 1 | . . 1 . Siege Activations . | . . . . Martial Activations . | . . . . Shielding Activations . | . . . . Robots Disrupted . | . . . . Combat Hostiles . | . . . . Robots Corrupted 1 | . . 1 . Combat Hostiles . | . . . . Parts Fried 14 | 4 . 6 4 Impact Corruptions . | . . . . Robots Melted . | . . . . Combat Hostiles . | . . . . Parts Melted 1 | . . . 1 Heat Transferred 1674 | 250 200 400 824 Parts Sabotaged . | . . . . Parts Stolen . | . . . . Parts Stripped . | . . . . Power Chain Reactions 20 | 3 4 5 8 Alert | -11 -10 -9 -9 ------- Run | Yrd Mat Mat Sto Maximum Alert Level 3 | . 1 2 3 Low Security (%) 40 | 100 94 27 9 Level 1 34 | . 5 55 14 Level 2 24 | . . 17 72 Level 3 . | . . . 2 Level 4 . | . . . . Level 5 . | . . . . High Security . | . . . . Max Security . | . . . . Peak Influence 724 | 10 209 581 724 Initial 243 | . . 65 243 Average 255 | 1 109 259 437 Influence Increases 3134 | 40 563 1288 1243 Destroy 0b10 Robot/C 1840 | . 360 800 680 Destroy 0b10 Robot/NC 205 | 40 40 75 50 Destroy Leader 466 | . 68 212 186 Allied During Kill 50 | . . . 50 Successful Hack 21 | . . 8 13 Disable Machine 195 | . 30 75 90 Destroy Structure 192 | . 35 73 84 Lose Combat Pursuer 165 | . 30 45 90 Influence Decreases 2652 | 40 408 867 1337 Entered New Map 423 | . . 90 333 Time Decay 1569 | 40 368 697 464 Lost Part 120 | . 40 70 10 Lost Ally 240 | . . 10 230 Purge Threat 300 | . . . 300 Squads Dispatched 18 | . 3 4 11 Investigation 4 | . 1 1 2 Extermination . | . . . . Reinforcement 7 | . 2 2 3 Assault 4 | . . 1 3 Garrison 3 | . . . 3 Intercept . | . . . . Searches Triggered . | . . . . Construction Impeded 1 | . . . 1 Haulers Reinforced . | . . . . Active Scanning Responses . | . . . . Cargo Convoy Interrupts . | . . . . Stealth | -11 -10 -9 -9 --------- Run | Yrd Mat Mat Sto Distress Signals 7 | . 2 5 . Communications Jammed . | . . . . Distress Signals . | . . . . Times Spotted 127 | . 30 54 43 Peak Tracking Total 7 | . 5 4 7 Tactical Retreats 6 | . 2 2 2 Traps | -11 -10 -9 -9 ------- Run | Yrd Mat Mat Sto Traps Triggered 4 | . . 3 1 Indirectly . | . . . . Trap Hack Attempts . | . . . . Triggered . | . . . . Disarmed . | . . . . Reprogrammed . | . . . . Reused . | . . . . Traps Extracted . | . . . . Installed . | . . . . Triggered . | . . . . Machines | -11 -10 -9 -9 ---------- Run | Yrd Mat Mat Sto Machines Disabled 13 | . 2 5 6 Max in Single Turn 2 | . 2 2 2 Machines Repaired . | . . . . Machines Dismantled . | . . . . Machines Sabotaged . | . . . . Overloaded Fab Kills . | . . . . Hacking | -11 -10 -9 -9 --------- Run | Yrd Mat Mat Sto Machines Accessed 25 | . 5 11 9 Terminals 16 | . 3 6 7 Fabricators . | . . . . Repair Stations 3 | . . 2 1 Recycling Units 4 | . 2 1 1 Scanalyzers 2 | . . 2 . Garrison Access . | . . . . Total Hacks 61 | . 16 22 23 Successful 33 | . 7 12 14 Failed 28 | . 9 10 9 Catastrophic 6 | . 1 3 2 Database Lockouts . | . . . . Manual 35 | . 10 14 11 Terminals 40 | . 10 14 16 Fabricators . | . . . . Repair Stations 8 | . . 4 4 Recycling Units 10 | . 6 1 3 Scanalyzers 3 | . . 3 . Garrison Access . | . . . . Terminal Hacks 8 | . 2 1 5 Robot Analysis 1 | . . . 1 Prototype ID Bank 1 | . . 1 . Open Door 1 | . . . 1 Alert Level 1 | . . . 1 Unreport Threat 2 | . . . 2 Hauler Manifests 1 | . 1 . . Zone Layout 1 | . 1 . . Fabricator Hacks . | . . . . Repair Station Hacks 7 | . . 3 4 Scan Component 4 | . . 2 2 Repair 3 | . . 1 2 Recycling Unit Hacks 3 | . 2 . 1 Report Inventory 1 | . 1 . . Retrieve Components 2 | . 1 . 1 Scanalyzer 1 | . . 1 . Insert Component 1 | . . 1 . Garrison Access Hacks . | . . . . Unauthorized Hacks 14 | . 3 7 4 Terminals 10 | . 1 6 3 Track 3 | . . 3 . Assimilate 2 | . . 1 1 Botnet 5 | . 1 2 2 Fabricators . | . . . . Repair Stations . | . . . . Recycling Units 4 | . 2 1 1 Reject 4 | . 2 1 1 Scanalyzers . | . . . . Garrison Access . | . . . . Data Cores Recovered 1 | . . 1 . Used 1 | . . 1 . Hacking Detections 19 | . 4 9 6 Full Trace Events 3 | . 1 1 1 Feedback Events 1 | . 1 . . Corruption 1 | . 1 . . Feedback Blocked . | . . . . Robot Schematics Acquired . | . . . . Robots Built . | . . . . Authchips . | . . . . Time . | . . . . Total Robot Build Rating . | . . . . Part Schematics Acquired . | . . . . Parts Built . | . . . . Authchips . | . . . . Time . | . . . . Total Part Build Rating . | . . . . Parts Repaired 3 | . . 1 2 Time 115 | . . 32 83 Parts Recycled . | . . . . Recycled Matter . | . . . . Retrieved Matter . | . . . . Retrieved Components 18 | . 9 . 9 Parts Scanalyzed . | . . . . Part Schematics Acquired . | . . . . Parts Damaged . | . . . . Bothacking | -11 -10 -9 -9 ------------ Run | Yrd Mat Mat Sto Used RIF Installer . | . . . . Robots Hacked . | . . . . Non-combat . | . . . . Combat . | . . . . Robot Hacks Applied . | . . . . Relay Couplers Released . | . . . . Fabnet Peak Effective % . | . . . . Robots Rewired . | . . . . Allies Hacked . | . . . . Hacks Repelled . | . . . . Allies | -11 -10 -9 -9 -------- Run | Yrd Mat Mat Sto Total Allies 14 | . . 1 13 Largest Group 11 | . . 1 11 Highest-Rated Group 98 | . . 10 98 Highest-Rated Ally 31 | . . 10 31 Total Orders 1 | . . . 1 STAY 1 | . . . 1 Ally Attacks 82 | . . . 82 Total Damage 796 | . . . 796 Kills 11 | . . . 11 Allies Corrupted . | . . . . Allies Melted . | . . . . Intel | -11 -10 -9 -9 ------- Run | Yrd Mat Mat Sto Active Infowar (turns) 1547 | 149 1056 342 . Optics 1001 | . 960 41 . Terrain 245 | 149 96 . . Seismic 301 | . . 301 . Robot Analysis Total 1 | . . . 1 Derelict Logs Recovered . | . . . . Drone Launches . | . . . . Drone Recoveries . | . . . . Exploration | -11 -10 -9 -9 ------------- Run | Yrd Mat Mat Sto Turns Passed 5441 | 282 1056 2928 1175 Spaces Moved 2964 | 119 479 1745 621 Core 12 | 12 . . . Treads 164 | 107 57 . . Legs 2788 | . 422 1745 621 Wheels . | . . . . Hover . | . . . . Flight . | . . . . Fastest Speed 50 | 50 120 120 120 Average Speed 128 | 164 161 120 120 Slowest Speed 260 | 250 260 190 190 Overloaded Moves . | . . . . Propulsion Burnouts . | . . . . Robots Hopped . | . . . . Potential Cave-ins . | . . . . Cave-ins Triggered . | . . . . Exploration Rate (%) 62 | 5 76 93 77 Regions Visited 3 Branch Regions 1 Pre-discovered Areas . | . . . . Known Exits Taken . | . . . . Unknown Exits Taken 3 | 1 1 1 . Scrap Searched . | . . . . Spaces Dug . | . . . . Terrain Destroyed 194 | 8 32 70 84 Melee . | . . . . Projectile 3 | . . 2 1 AOE 191 | 8 32 68 83 Terrain Rammed . | . . . . Walls Destroyed . | . . . . Machines Disabled . | . . . . Actions | -11 -10 -9 -9 --------- Run | Yrd Mat Mat Sto Total 4070 | 156 650 2311 953 Wait 665 | 2 63 340 260 Move 2961 | 118 478 1744 621 Hop . | . . . . Pick Up 60 | 6 23 29 2 Fast Attach 10 | 7 . 1 2 Attach 16 | . 4 11 1 Detach 1 | . . 1 . Swap 41 | . 7 19 15 Drop 35 | . 12 20 3 Fire 280 | 23 63 146 48 Melee 1 | . . . 1 Ram . | . . . . Kick . | . . . . Crush . | . . . . Escape Stasis . | . . . . Rewire . | . . . . Trap . | . . . . Miscellaneous . | . . . . Route ------- -11/Scrapyard -10/Materials (discovered 4 exits: *Mat x3 / [*Min]) -9/Materials (discovered 6 exits: [*Mat x3] / [*Min] / *Sto x2) -9/Storage History --------- Turn | Location | Event 18 | -11/Scrapyard | Discovered new exit (range 15) 283 | -11/Scrapyard | Entered Materials 303 | -10/Materials | Build established: Mutant 498 | -10/Materials | Discovered new exit (range 11) 713 | -10/Materials | Discovered new exit (range 3) 801 | -10/Materials | Core integrity fell below 50% 899 | -10/Materials | Discovered new exit (range 17) 966 | -10/Materials | Discovered new exit (range 10) 1339 | -10/Materials | Entered another Materials area 1339 | -9/Materials | Evolved 2 slots: Propulsion x2 1676 | -9/Materials | Discovered new exit (range 12) 1851 | -9/Materials | Discovered new exit (range 9) 1938 | -9/Materials | Repaired Imp. Aluminum Leg 2116 | -9/Materials | Core integrity fell below 50% 2590 | -9/Materials | Discovered new exit (range 12) 2705 | -9/Materials | Discovered new exit (range 5) 3926 | -9/Materials | Discovered new exit (range 10) 4068 | -9/Materials | Discovered new exit (range 15) 4139 | -9/Materials | First assault squad dispatched 4267 | -9/Materials | Entered Storage 4437 | -9/Storage | Met a pair of Derelict thieves 4523 | -9/Storage | Garrison activated, responded to threat 4539 | -9/Storage | Core integrity fell below 20% 4597 | -9/Storage | Destroyed 16 combat bots 4667 | -9/Storage | First assault squad dispatched 4845 | -9/Storage | Assisted by bots powering up and referring to "LRC-V3" 4913 | -9/Storage | Repaired Imp. EM Shotgun 4946 | -9/Storage | Repaired Imp. Aluminum Leg 5103 | -9/Storage | Lost 3 allies 5138 | -9/Storage | Build established: Commander-Mutant 5234 | -9/Storage | Lost 3 allies 5442 | -9/Storage | Destroyed by Y-45 Defender with Beam Rifle Last Messages --------------- 05380_ System corrupted: Imp. EM Shotgun misfires. 05389_ Triggered Alarm Trap. 05389_ An alarm sounds. 05389_ ALERT: Alarm triggered, dispatching investigation squad. 05397_ Mercenary 2h destroyed. 05407_ Y-45 Defender destroyed. 05410_ Connecting with Terminal... 05415_ System corrupted: Energy discharge (-112). 05421_ Trooper 2a destroyed. 05427_ R-06 Scavenger inserts Ion Engine into recycling unit. 05430_ R-06 Scavenger inserts Particle Gun into recycling unit. 05431_ Mercenary 2d destroyed. 05433_ R-06 Scavenger inserts Sml. Laser into recycling unit. 05436_ R-06 Scavenger collects Lgt. Treads. 05438_ Chain reaction triggered in Ion Engine. 05438_ Destroyed Sml. Laser. 05438_ Transfer Shaft disabled. 05438_ Recycling Unit disabled. 05438_ Hvy. Assault Rifle tumbles out of recycling unit. 05442_ Critical hit (Burn: +37). Map ----- +----------------------------------------------------+ | ???????? # " | | ???????? # | | ???????????####### ### ## | | ?????????????????# #?# ## | | ?????????????????# ###/##### | | ?????????????????# # | | ???????#+#######?# # | | ???????# ! ?# # | | ???????# # # "" """ | | ???????# # + "***="? | | ???????# + # "]==]"? | | ???????# # # """"""? | | ???????# """ """ ## # ?????? | | ???????? """ """??# # ????? | | ?????????""" """??# #####???? | | ??????????#####???# #???????? | | ??????????????????# ########? | | ??????????????????# | | ?????#####????????# ########? | | ??####"T"####?????# #???????? | | ??# #?????# #???????? | | ??# #?????# #??#####+ | | ??# [==Y ####### #### ] | | ??# =[%g"" + + | | ??# =%= "" ####+##+#### """ | | ??# @ "" #?? # ?# """ | | ??# %= r #?? # ## """ | | ??# [ [ #? # ## | | ??#####+#;###? # ####### | | ?????? #??# ! # #?????? | | ????? #??# # #?????? | | ????? #??# = # #?????? | | ?????? #??#[ #####?????? | | ?????? #??# #?????????? | | ?????? ##??######?????????? | | ?????? #?????????????????## | | ?????? #?????????????????# | | ???????????????????????????# | | ???????????????????????????# | | ???????????????????????????# | | ???????????????????????????# | | ???????????????????????????# | | ???????????????????????????## | | ????????????????????????##### | | ????????????????????????# T# | | ????????????????????????# | | ????????????????????????# | | ????????????????????????# | | ????????????????????????# # | | ????????????????????????##### | +----------------------------------------------------+ Best States ------------- Heat Dissipation 28 Energy Generation 14 Energy Capacity 280 Matter Stores 300 Matter Capacity 300 Sight Range 18 Terrain Scan Range 16 Terrain Scan Density 10 Armor Coverage 225 Core Shielding 20 Evasion (%) 55 Recoil Reduction 2 Item Schematics ----------------- None Robot Schematics ------------------ None Fabricated ------------ Nothing Repaired ---------- Imp. Aluminum Leg | 18% | -9/Materials Imp. EM Shotgun | 21% | -9/Storage Imp. Aluminum Leg | 18% | -9/Storage Alien Tech Used ----------------- None Achievements -------------- Backstab Challenges ------------ None Game ------ Seed HardlightTrapFemtoactuators Manual? 0 Play Time 01:09:29 Cumulative 28.0 hours Start 2025.05.30 @ 10:22:46 End 2025.05.30 @ 11:35:35 Sessions 1 Manual Loads 0 Difficulty Rogue Special Mode None Game No. 22 Rogue 22 Adventurer 0 Explorer 0 Win Type - Total 0 Types 0/0/0/0/0/0/0/0/0/0 Lore% 22 Gallery% 17 Achievement% 20 Wizard Run 0 Options --------- Layout 0 ASCII 0 Keyboard 0 Movement Arrows Keybinds 0 Fullscreen 1 Font 18/SmallcapsGlow Map View 76x50 Zoom Use 0% Tactical HUD 1 Map Filters NONE Filters NONE Steam X RUN: b0820cff-6f90-4597-8f17-3dc153497e15